bitfinex/quotes_ETHUSD_20240731
["timestamp","ask_amount","ask_price","bid_price","bid_amount"]
[1722414752067,3.45910033,3328.3,3327.7,3.00504]
[1722414752384,1.57221054,3328.0,3327.5,3.00521]
[1722414752583,1.57221054,3328.0,3327.5,3.7728113]
[1722414753106,1.57221054,3327.9,3327.5,0.7676013]
[1722414753310,4.57702054,3328.0,3327.3,3.00541]
[1722414753467,4.57669221,3328.0,3327.3,3.00541]
[1722414753669,5.37193,3328.2,3326.9,10.128]
[1722414753670,5.32051,3327.6,3326.9,7.47]
[1722414753983,3.00526,3327.5,3326.9,7.47]
[1722414754171,4.57677551,3327.5,3326.9,7.47]
[1722414754502,3.88681551,3327.6,3326.9,10.47579]
[1722414754805,2.3153,3327.6,3327.0,4.353851]
[1722414754960,1.57151551,3327.7,3327.0,1.40826952]
[1722414755153,1.57151551,3327.9,3327.4,3.00533]
[1722414755358,1.57151551,3328.0,3327.5,0.06010235]
[1722414755678,1.57151551,3328.1,3327.5,3.24540024]
[1722414755889,1.57151551,3328.0,3327.5,3.0052]
[1722414756458,1.57151551,3328.1,3327.5,3.0052]
[1722414757299,3.00463,3328.2,3327.5,3.0052]
[1722414757503,1.57081234,3328.1,3327.5,3.0052]
[1722414757686,1.57081234,3328.0,3327.3,3.00535]
[1722414758005,4.57567234,3328.0,3327.3,3.00535]
[1722414758420,1.57081234,3328.0,3327.3,3.00535]
[1722414758615,1.57081234,3328.1,3327.4,3.00529]
[1722414758777,3.00481,3328.0,3327.4,3.00529]
[1722414758979,4.57562234,3328.0,3327.4,3.00529]
[1722414760218,3.00481,3328.0,3327.4,3.00529]
[1722414761483,1.5702456,3328.1,3327.4,3.00529]
[1722414761681,1.5702456,3328.1,3327.4,3.00528]
[1722414761896,1.5702456,3328.2,3327.6,3.00509]
[1722414762237,1.5702456,3328.3,3327.7,0.060097]
[1722414762423,1.5702456,3328.3,3327.8,3.00496]
[1722414762998,1.5702456,3328.3,3327.8,3.06505358]
[1722414763344,1.5702456,3328.5,3328.1,3.00464]
[1722414763538,1.5702456,3328.6,3328.2,3.305034]
[1722414763722,1.5702456,3328.6,3328.0,3.00474]
[1722414764044,1.57033635,3328.6,3328.0,3.00474]
[1722414764400,1.57033635,3328.5,3328.0,3.00474]
[1722414765047,1.57033635,3328.5,3327.8,3.0049]
[1722414765359,1.57033635,3328.4,3327.8,3.0049]
[1722414765669,1.57033635,3328.4,3327.8,6.00982]
[1722414765875,1.57033635,3328.4,3327.8,3.0049]
[1722414766167,1.57033635,3328.4,3327.8,6.00983]
[1722414766329,1.57033635,3328.4,3327.2,3.00546]
[1722414766330,3.00483,3328.0,3327.2,3.00546]
[1722414766759,1.57033635,3328.0,3327.2,3.00546]
[1722414767072,4.13630362,3328.3,3327.0,2.4651]
[1722414767073,3.00499,3327.8,3327.0,2.4651]
[1722414767256,4.57500437,3327.8,3327.0,2.4651]
[1722414767459,4.57499583,3327.8,3327.1,3.00561]
[1722414767643,4.57499583,3327.8,3327.2,3.00552]
[1722414767845,1.57000583,3327.9,3327.2,3.853143]
[1722414768167,4.57494583,3327.9,3327.2,3.853143]
[1722414768375,1.57000583,3327.8,3327.2,3.853143]
[1722414768538,4.57494583,3327.9,3327.2,3.853143]
[1722414768929,3.00499,3327.8,3327.2,3.853143]
[1722414769277,6.01004,3327.8,3327.2,0.847623]
[1722414769474,3.00503,3327.8,3327.0,2.4651]
[1722414769771,3.00509,3327.7,3327.0,3.012193]
[1722414770076,3.00509,3327.7,3327.1,3.0056]
[1722414770771,5.31338,3327.6,3326.9,3.00579]
[1722414771072,2.3082,3327.6,3327.0,3.00568]
[1722414771976,3.00508,3327.7,3327.1,3.0056]
[1722414772471,4.57462346,3327.7,3327.1,3.0056]
[1722414772774,4.57462346,3327.7,3327.0,0.300568]
[1722414773334,4.57462346,3327.7,3327.1,3.00561]
[1722414773535,3.00508,3327.7,3327.1,3.00561]
[1722414776451,4.57435408,3327.8,3327.1,3.6368068]
[1722414777291,3.00506,3327.8,3327.1,3.6368068]
[1722414777437,4.57447868,3327.8,3327.1,3.6368068]
[1722414778182,4.02981868,3327.9,3327.3,3.00539]
[1722414778335,4.57426868,3328.0,3327.4,3.00534]
[1722414778535,4.57426868,3328.0,3327.3,3.00542]
[1722414778735,1.56941868,3327.9,3327.3,3.00542]
[1722414779296,4.57431868,3327.9,3327.3,3.00542]
[1722414779435,4.57442868,3327.8,3327.2,2.3135]
[1722414780060,4.57431868,3327.9,3327.2,2.3135]
[1722414780261,1.56941868,3327.9,3327.3,3.00542]
[1722414780462,1.56941868,3327.9,3327.5,3.00519]
[1722414780698,1.57005325,3328.0,3327.5,3.00519]
[1722414781011,7.48,3328.2,3327.8,3.0049]
[1722414781305,1.57019177,3328.4,3327.9,3.00488]
[1722414781458,1.57019177,3328.4,3327.7,5.40139]
[1722414781459,4.57464177,3328.4,3327.7,5.40139]
[1722414781659,3.00439,3328.5,3327.7,5.40139]
[1722414781660,4.57474177,3328.3,3327.7,5.40139]
[1722414781860,4.57474177,3328.3,3327.8,35.0]
[1722414782061,1.57019177,3328.2,3327.8,35.0]
[1722414782666,0.538759,3328.4,3327.8,35.0]
[1722414782667,4.57501177,3328.0,3327.8,35.0]
[1722414783169,1.57019177,3327.9,3327.3,3.00539]
[1722414783485,1.57019177,3328.0,3327.5,3.00525]
[1722414783678,1.57019177,3328.1,3327.5,38.606309]
[1722414784110,3.00471,3328.1,3327.5,38.606309]
[1722414784433,1.57108311,3328.0,3327.5,35.601059]
[1722414784566,1.57108311,3327.9,3327.5,35.601059]
[1722414784874,4.57592311,3328.0,3327.5,35.0]
[1722414785470,1.57108311,3327.9,3327.5,35.0]
[1722414786284,4.57599311,3327.9,3327.1,2.4409]
[1722414786515,1.57108311,3327.8,3327.3,3.00543]
[1722414786667,4.57599311,3327.9,3327.2,38.24961]
[1722414786862,1.57108311,3327.8,3327.2,38.24961]
[1722414787299,1.57108311,3327.8,3327.0,3.00564]
[1722414787300,1.57108311,3327.7,3327.0,3.00563]
[1722414787483,1.57232044,3327.5,3327.0,3.00563]
[1722414787712,1.57232044,3327.5,3327.1,35.0]
[1722414788070,1.57232044,3327.5,3327.1,37.75091253]
[1722414789476,1.57232044,3327.5,3326.8,2.2797]
[1722414789477,1.57232044,3327.2,3326.8,3.00588]
[1722414789715,1.57232044,3327.2,3326.7,3.00597]
[1722414789927,4.89209453,3327.5,3326.7,3.00592]
[1722414789928,1.57232044,3327.1,3326.7,3.00592]
[1722414790216,1.57232044,3327.1,3326.8,35.0]
[1722414790435,1.57232044,3327.1,3326.8,38.00589]
[1722414791678,1.57232044,3327.0,3326.8,38.00589]
[1722414791893,1.57232044,3327.0,3326.8,35.0]
[1722414792087,1.57232044,3326.9,3326.8,35.0]
[1722414792286,1.57232044,3327.0,3326.8,35.0]
[1722414793934,1.57232044,3326.9,3326.8,35.0]
[1722414794138,5.45615,3327.3,3326.8,35.0]
[1722414794431,1.88927545,3327.1,3326.8,35.0]
[1722414794838,4.89494545,3327.1,3326.8,35.0]
[1722414795018,4.89494545,3327.1,3326.1,10.128]
[1722414795019,3.00571,3327.0,3326.4,3.0062]
[1722414795206,1.57418161,3326.7,3326.4,3.0062]
[1722414795533,1.57418161,3326.7,3326.5,35.0]
[1722414795768,1.57418161,3326.8,3326.5,35.0]
[1722414796465,1.57418161,3326.8,3326.5,38.70916701]
[1722414797974,1.57418161,3326.9,3326.7,3.00595]
[1722414798382,1.57418161,3326.9,3326.5,38.70911701]
[1722414798874,1.57418161,3326.9,3326.7,3.00597]
[1722414799228,1.57418161,3326.9,3326.5,38.70907701]
[1722414799433,1.57418161,3326.9,3326.6,6.05505288]
[1722414799972,1.57418161,3326.9,3326.6,3.00604]
[1722414800168,1.57418161,3326.8,3326.6,38.00604]
[1722414800377,1.57418161,3326.9,3326.7,3.00596]
[1722414800877,1.57335074,3326.9,3326.7,3.00596]
[1722414801074,1.57335074,3327.0,3326.7,3.00596]
[1722414802772,1.57335074,3327.2,3326.9,3.00579]
[1722414802956,1.57335074,3327.1,3326.9,3.00579]
[1722414803366,1.57335074,3327.1,3327.0,3.306289]
[1722414803565,1.57335074,3327.3,3327.0,0.300579]
[1722414803752,1.57335074,3327.3,3327.1,3.00561]
[1722414804082,1.57335074,3327.2,3326.9,3.00571]
[1722414804248,1.57330352,3327.1,3326.9,6.01143]
[1722414804582,1.57330352,3327.1,3326.9,3.00571]
[1722414804782,1.57330352,3327.1,3326.9,4.14870429]
[1722414804971,1.57330352,3327.1,3326.9,7.15443429]
[1722414805168,1.57330352,3327.2,3327.0,3.00571]
[1722414805384,1.57330352,3327.2,3326.9,3.00571]
[1722414805590,1.57330352,3327.2,3326.9,6.01145]
[1722414805748,1.57330352,3327.1,3326.7,8.42423288]
[1722414806081,1.57330352,3327.1,3326.8,3.00587]
[1722414807582,3.00535,3327.4,3326.8,3.00587]
[1722414807760,1.57341838,3327.1,3326.8,3.00587]
[1722414808482,1.57341838,3327.0,3326.7,3.00597]
[1722414808680,1.57341838,3327.1,3326.7,3.00597]
[1722414809088,1.5735251,3327.1,3326.7,3.00597]
[1722414809459,1.5735251,3327.1,3326.5,3.70909701]
[1722414809802,1.5735251,3327.0,3326.6,3.00605]
[1722414810148,1.5735251,3327.0,3326.6,3.00602]
[1722414810349,1.5735251,3327.1,3326.7,3.00592]
[1722414810582,1.5735251,3327.0,3326.7,6.05493288]
[1722414810889,1.5735251,3327.1,3326.7,3.00592]
[1722414811249,1.57398191,3327.0,3326.6,1.108]
[1722414811450,1.57398191,3327.1,3326.8,3.00582]
[1722414812251,1.57398191,3327.0,3326.8,3.00582]
[1722414813189,1.57398191,3326.9,3326.6,7.12001]
[1722414813351,1.57398191,3327.0,3326.7,3.00597]
[1722414813891,1.57398191,3327.0,3326.8,3.00589]
[1722414814694,1.57398191,3327.0,3326.7,3.00597]
[1722414814695,1.57436321,3327.0,3326.7,3.00597]
[1722414816090,1.57436321,3327.0,3326.6,39.11399]
[1722414816091,1.57436321,3327.0,3326.6,36.108]
[1722414816294,1.57436321,3326.9,3326.4,5.28649]
[1722414816697,1.57436321,3326.9,3326.5,35.0]
[1722414818059,1.57422594,3326.9,3326.5,35.0]
[1722414819612,1.57422594,3326.9,3326.5,38.00614]
[1722414821448,1.57412178,3326.9,3326.5,35.0]
[1722414821805,1.57412178,3326.9,3326.5,38.00616]
[1722414822040,1.57412178,3326.9,3326.5,41.05517288]
[1722414822217,1.57412178,3326.8,3326.5,41.05517288]
[1722414822417,1.57412178,3326.8,3326.5,38.00616]
[1722414822937,3.00549,3327.3,3326.8,3.00589]
[1722414822938,1.57412178,3327.0,3326.8,3.00589]
[1722414823114,1.57412178,3327.0,3326.9,4.1138]
[1722414823313,1.57412178,3327.0,3326.9,4.825769]
[1722414823544,1.57412178,3327.0,3326.9,39.825769]
[1722414823841,1.88894613,3327.4,3326.9,39.825769]
[1722414823842,1.57412178,3327.1,3327.0,3.00571]
[1722414824423,1.88894613,3327.5,3327.4,3.00534]
[1722414824640,1.57456983,3327.5,3327.4,3.00534]
[1722414824805,7.48,3327.9,3327.4,3.00534]
[1722414825014,5.48754,3328.2,3327.5,1.16809814]
[1722414825015,1.57459968,3327.8,3327.5,1.16809814]
[1722414825338,1.57459968,3327.7,3327.5,4.11325]
[1722414825927,1.57459968,3327.7,3327.5,3.00525]
[1722414826135,1.57459968,3327.7,3327.3,1.108]
[1722414826448,1.57459968,3327.5,3327.3,1.5604841]
[1722414826650,1.57459968,3327.5,3327.2,3.00546]
[1722414826807,1.57459968,3327.5,3327.3,3.00537]
[1722414827011,1.57459968,3327.6,3327.4,3.00534]
[1722414828153,1.57424375,3327.6,3327.4,3.00534]
[1722414828362,1.57424375,3327.6,3327.4,3.60642]
[1722414828726,1.57424375,3327.7,3327.5,3.00525]
[1722414829260,1.57424375,3327.7,3327.4,0.60108]
[1722414829461,1.8890925,3328.0,3327.4,3.60636]
[1722414829462,1.57424375,3327.6,3327.4,3.60636]
[1722414829619,1.57424375,3327.7,3327.4,3.60636]
[1722414830145,1.57424375,3327.6,3327.5,0.360636]
[1722414830520,1.8890925,3328.0,3327.5,0.360636]
[1722414830521,1.57424375,3327.7,3327.5,0.360636]
[1722414830716,1.57424375,3327.7,3327.4,38.00526]
[1722414830947,1.57424375,3327.6,3327.4,38.00526]
[1722414831148,1.57424375,3327.7,3327.4,38.00526]
[1722414831315,1.57424375,3327.7,3327.5,2.23886865]
[1722414831507,1.57446803,3327.7,3327.5,2.23886865]
[1722414832952,1.88936163,3327.9,3327.5,2.23886865]
[1722414833125,1.57440323,3327.6,3327.4,35.0]
[1722414833967,4.06050323,3327.6,3327.0,3.00565]
[1722414834105,4.57959302,3327.4,3326.8,7.47]
[1722414834308,1.57421302,3327.2,3326.8,7.47]
[1722414834574,4.89464163,3327.5,3326.6,35.0]
[1722414834575,1.57421302,3327.1,3326.6,3.00598]
[1722414834771,1.57405018,3327.1,3326.6,3.852208]
[1722414835075,1.57405018,3327.1,3326.8,3.00584]
[1722414835217,1.57405018,3327.1,3326.9,3.0058]
[1722414835867,1.57405018,3327.2,3327.0,3.0057]
[1722414836420,1.88886022,3327.5,3327.0,3.0057]
[1722414836421,1.57405018,3327.3,3327.1,3.00562]
[1722414837110,3.89095018,3327.3,3326.6,35.846228]
[1722414837428,1.57405018,3327.2,3326.7,3.00592]
[1722414837628,1.57405018,3327.3,3326.8,3.04901288]
[1722414837943,4.37906022,3327.6,3326.8,6.05482288]
[1722414837944,5.49544,3327.6,3326.8,6.05482288]
[1722414838110,1.57412199,3327.1,3326.9,3.00579]
[1722414838452,1.57412199,3327.1,3326.8,3.00587]
[1722414838667,1.57412199,3327.1,3326.7,3.00592]
[1722414838668,1.57412199,3327.1,3326.9,3.00579]
[1722414839032,1.57412199,3327.1,3326.7,3.00592]
[1722414839355,1.57412199,3327.1,3326.6,35.0]
[1722414839570,1.57412199,3327.0,3326.4,2.4964]
[1722414839716,1.57412199,3327.0,3326.4,3.793668]
[1722414839915,1.57412199,3327.0,3326.5,3.00611]
[1722414840151,1.57412199,3327.0,3326.5,38.00611]
[1722414841360,1.57414588,3326.9,3326.5,38.00611]
[1722414841562,1.57413457,3326.9,3326.5,38.00611]
[1722414841861,1.57412663,3326.9,3326.5,38.00611]
[1722414843276,1.57412663,3326.9,3326.5,38.0061]
[1722414843489,1.57412663,3327.0,3326.7,3.00596]
[1722414843636,1.57412663,3326.9,3326.7,3.00596]
[1722414844289,1.57412663,3327.0,3326.7,3.00596]
[1722414844576,1.57412663,3327.0,3326.8,3.00583]
[1722414844749,1.57412663,3327.0,3326.9,3.0058]
[1722414844944,1.57434839,3327.0,3326.9,3.0058]
[1722414845877,1.57434839,3327.2,3327.1,3.00562]
[1722414846175,1.57434839,3327.4,3327.3,3.00543]
[1722414846344,1.57434839,3327.6,3327.4,3.0053]
[1722414847132,1.57434839,3327.6,3327.5,3.00525]
[1722414847403,1.57434839,3327.7,3327.5,3.00525]
[1722414847539,1.57434839,3327.6,3327.5,3.00525]
[1722414847740,1.57434839,3327.7,3327.5,3.00525]
[1722414848057,1.57444208,3327.7,3327.5,3.00525]
[1722414849604,8.50051,3328.1,3327.5,3.00525]
[1722414849605,1.57444208,3327.6,3327.5,3.00525]
[1722414849809,1.57444208,3327.7,3327.5,6.01044]
[1722414850110,1.57444208,3327.7,3327.5,3.00519]
[1722414850287,1.57444208,3327.7,3327.5,3.0052]
[1722414850496,3.00462,3328.2,3327.7,3.00507]
[1722414850497,1.57444208,3327.9,3327.7,3.00507]
[1722414850684,1.57444208,3327.9,3327.8,3.00498]
[1722414851100,1.57444208,3328.0,3327.8,5.39108]
[1722414851294,1.57444208,3328.0,3327.8,3.00498]
[1722414851599,1.5739274,3328.0,3327.8,3.00498]
[1722414851766,1.5739274,3328.0,3327.6,4.11208]
[1722414851969,1.5739274,3328.0,3327.7,3.00501]
[1722414852284,1.5739274,3328.0,3327.4,1.107]
[1722414852486,1.5739274,3327.9,3327.4,4.11228]
[1722414852813,1.5739274,3328.0,3327.5,3.00525]
[1722414853581,1.5739274,3328.0,3327.3,3.00537]
[1722414853877,1.5739274,3327.7,3327.3,3.00537]
[1722414854395,1.5739274,3327.6,3327.3,3.00537]
[1722414854799,4.89361288,3327.9,3327.3,3.00537]
[1722414854800,3.0049,3327.9,3327.3,3.00537]
[1722414855131,1.57336887,3327.7,3327.2,3.00545]
[1722414855337,1.57336887,3327.6,3327.3,3.00543]
[1722414856931,1.57336887,3327.5,3327.3,3.00543]
[1722414858198,4.89294264,3327.9,3327.3,3.00543]
[1722414858199,3.0049,3327.9,3327.3,3.00543]
[1722414858472,1.57337442,3327.6,3327.3,3.00543]
[1722414859316,1.57337442,3327.6,3327.2,38.00545]
[1722414859541,1.57337442,3327.6,3327.2,41.01092]
[1722414859763,1.57337442,3327.6,3327.3,3.00543]
[1722414860805,1.57337442,3327.6,3327.2,3.00545]
[1722414861143,3.95167442,3327.6,3327.2,3.00545]
[1722414861297,1.57337442,3327.6,3327.2,3.00545]
[1722414861497,1.57348142,3327.6,3327.1,38.00553]
[1722414861740,1.57348142,3327.5,3327.1,38.99052385]
[1722414861945,1.57348142,3327.5,3327.1,38.00553]
[1722414862279,1.57348142,3327.5,3327.2,3.00552]
[1722414862946,1.57348142,3327.5,3327.1,35.0]
[1722414863100,1.57348142,3327.5,3327.1,38.00556]
[1722414863732,1.57348142,3327.5,3327.1,35.0]
[1722414864040,1.57348142,3327.3,3326.9,6.01151]
[1722414864202,1.57348142,3327.2,3326.9,3.00574]
[1722414864848,2.398,3327.4,3326.9,3.00574]
[1722414864997,2.398,3327.4,3326.9,3.00573]
[1722414864998,1.57357204,3327.2,3326.9,3.00573]
[1722414867023,1.57357204,3327.1,3326.9,3.00573]
[1722414867348,2.398,3327.4,3326.9,3.00573]
[1722414867349,1.57357204,3327.2,3326.9,3.00573]
[1722414868199,1.57385694,3327.2,3326.7,3.00592]
[1722414868403,1.57385694,3327.0,3326.7,3.00592]
[1722414871616,1.57389954,3327.0,3326.7,3.00592]
[1722414872355,1.57389954,3327.0,3326.7,3.0059]
[1722414872561,1.57389954,3327.1,3326.9,3.0058]
[1722414873046,1.57389954,3327.1,3326.7,3.0059]
[1722414873420,1.57389954,3327.0,3326.7,3.0059]
[1722414874358,1.57389954,3327.0,3326.5,3.0061]
[1722414874717,1.57389954,3326.9,3326.5,3.0061]
[1722414874921,3.00558,3327.2,3326.5,3.0061]
[1722414875223,1.57285645,3326.9,3326.5,3.0061]
[1722414876048,1.57285645,3326.8,3326.5,3.0061]
[1722414876420,1.57285645,3326.9,3326.5,3.0061]
[1722414876852,1.57285645,3326.8,3326.5,3.0061]
[1722414877167,1.57285645,3326.9,3326.5,3.0061]
[1722414877385,1.57285645,3326.8,3326.5,3.0061]
[1722414877671,1.57285645,3326.9,3326.5,3.0061]
[1722414877822,1.57285645,3326.8,3326.5,3.0061]
[1722414878019,1.57285645,3326.8,3326.4,1.108]
[1722414878223,1.57285645,3326.8,3326.3,6.01256]
[1722414878433,1.57285645,3326.8,3326.4,3.00624]
[1722414878434,1.5727422,3326.8,3326.4,3.00624]
[1722414881858,1.57229822,3326.8,3326.4,3.00624]
[1722414882018,1.57229822,3326.9,3326.5,3.00615]
[1722414883487,1.57229822,3326.8,3326.5,3.00615]
[1722414883688,1.57229822,3326.8,3326.3,7.601135]
[1722414883888,1.57229822,3326.9,3326.4,4.5638385]
[1722414884048,1.57229822,3326.8,3326.4,3.00622]
[1722414885293,3.00563,3327.1,3326.4,3.00622]
[1722414885495,1.57222983,3326.8,3326.4,3.00622]
[1722414885677,1.57222983,3326.8,3326.4,4.705597]
[1722414886580,1.57222983,3326.9,3326.4,4.705597]
[1722414886897,1.57222983,3326.8,3326.2,13.98765]
[1722414887099,3.00586,3326.9,3326.2,13.98765]
[1722414887100,1.57222983,3326.9,3326.2,13.98765]
[1722414887255,1.57222983,3326.8,3326.3,3.00629]
[1722414887471,1.57222983,3326.8,3326.3,4.705684]
[1722414888610,3.00572,3327.0,3326.3,4.705684]
[1722414888913,1.57162579,3326.8,3326.3,4.705684]
[1722414889309,1.57162579,3326.8,3326.6,3.00605]
[1722414889513,1.57162579,3327.0,3326.6,3.00605]
[1722414889712,1.57162579,3326.9,3326.6,3.00605]
[1722414890770,1.57162579,3327.0,3326.6,3.00605]
[1722414890977,1.57162579,3327.0,3326.4,3.00624]
[1722414890978,1.57162579,3326.9,3326.4,3.00618]
[1722414891415,1.57162579,3326.8,3326.3,3.00627]
[1722414891612,1.57162579,3326.9,3326.4,3.0062]
[1722414892179,4.11362,3327.1,3326.4,3.0062]
[1722414892371,1.57118508,3326.9,3326.4,3.0062]
[1722414893091,1.57118508,3326.9,3326.5,3.00615]
[1722414894377,1.57118508,3326.9,3326.5,3.0061]
[1722414894584,1.57118508,3326.9,3326.6,3.00607]
[1722414895279,1.57118508,3326.9,3326.7,3.00597]
[1722414895618,1.57117771,3326.9,3326.7,3.00597]
[1722414897901,1.57117771,3326.9,3326.5,3.00607]
[1722414898446,1.57117771,3326.8,3326.6,3.00606]
[1722414899040,3.00553,3327.2,3326.6,3.00606]
[1722414899236,1.57175133,3326.9,3326.8,3.00589]
[1722414899451,1.57175133,3327.0,3326.9,3.0058]
[1722414900836,1.8861016,3327.2,3326.8,3.00587]
[1722414901051,1.57233862,3326.9,3326.8,3.00587]
[1722414901334,1.57233862,3326.9,3326.6,3.00601]
[1722414901335,1.8861016,3327.1,3326.6,3.00599]
[1722414901544,1.57233182,3326.7,3326.6,3.00599]
[1722414901699,1.57233136,3326.7,3326.6,3.00599]
[1722414901904,1.57233136,3326.8,3326.6,3.00599]
[1722414902457,1.57233136,3326.7,3326.6,3.00599]
[1722414902612,1.57264246,3326.8,3326.6,6.01201]
[1722414902946,1.57264246,3326.8,3326.5,38.00611]
[1722414903313,1.57264246,3326.7,3326.6,3.00607]
[1722414903642,1.57264246,3326.9,3326.8,3.00589]
[1722414904038,1.57264246,3327.0,3326.9,3.0058]
[1722414905314,1.88717095,3327.2,3326.9,3.0058]
[1722414905516,1.88717095,3327.3,3327.2,3.00553]
[1722414905708,1.88717095,3327.4,3327.3,3.00543]
[1722414905908,2.3149,3327.9,3327.3,3.00543]
[1722414905909,5.31981,3327.9,3327.3,3.00543]
[1722414906236,1.88819744,3327.6,3327.3,3.00543]
[1722414906446,1.88819744,3327.5,3327.3,3.00543]
[1722414906942,1.88819744,3327.5,3327.0,5.40405]
[1722414907240,1.57364122,3327.2,3327.1,3.00562]
[1722414907647,1.57364122,3327.2,3327.1,6.01124]
[1722414908446,1.88819744,3327.5,3327.2,3.00552]
[1722414908605,1.88819744,3327.5,3327.1,6.01116]
[1722414908810,1.88819744,3327.4,3327.1,3.00554]
[1722414909039,1.57390246,3327.2,3327.1,3.00554]
[1722414909253,4.1686597,3327.7,3327.1,3.00554]
[1722414909409,1.88893852,3327.4,3327.1,3.00554]
[1722414909610,1.88893852,3327.4,3327.1,6.0111]
[1722414909856,1.88893852,3327.4,3327.2,3.00552]
[1722414910007,1.88893852,3327.5,3327.3,3.00543]
[1722414910215,1.88893852,3327.7,3327.4,3.00534]
[1722414910414,9.36893852,3328.0,3327.7,6.01014]
[1722414910617,1.88901035,3328.1,3327.9,3.00489]
[1722414910917,1.57424835,3328.0,3327.9,3.00489]
[1722414911152,1.88901035,3328.2,3327.9,3.00489]
[1722414911328,12.44,3328.4,3327.9,3.00489]
[1722414911329,1.57341904,3328.0,3327.9,3.00489]
[1722414911623,1.57341904,3328.0,3327.6,5.34411]
[1722414911846,1.57338003,3327.9,3327.7,0.645211]
[1722414912060,1.57338003,3327.8,3327.4,3.00528]
[1722414912354,1.57324495,3327.6,3327.4,3.00528]
[1722414912654,2.99701035,3327.9,3327.2,5.38432]
[1722414912655,1.57304149,3327.5,3327.2,3.00545]
[1722414913353,1.57304149,3327.6,3327.2,3.00545]
[1722414913856,1.57304149,3327.7,3327.5,3.00525]
[1722414914648,1.57304149,3327.7,3327.4,3.00529]
[1722414914948,1.57304149,3327.6,3327.4,3.00528]
[1722414915357,1.57304149,3327.6,3327.3,3.0054]
[1722414915651,1.57304149,3327.6,3327.3,3.00537]
[1722414915849,3.5979,3328.1,3327.5,3.00525]
[1722414916057,1.57220752,3327.7,3327.5,3.00525]
[1722414916417,1.57220752,3327.7,3327.3,4.11337]
[1722414916641,1.57220752,3327.6,3327.3,4.11337]
[1722414917923,1.57220752,3327.7,3327.3,4.11337]
[1722414919373,1.57220752,3327.7,3327.3,3.00537]
[1722414920267,1.57220752,3327.7,3327.2,35.0]
[1722414920444,1.57220752,3327.7,3327.2,38.00548]
[1722414920767,1.57220752,3327.7,3327.2,36.3135273]
[1722414921144,1.57220752,3327.7,3327.1,7.11908]
[1722414921358,1.57220752,3327.7,3327.1,4.11353]
[1722414921569,1.57220752,3327.7,3327.1,36.108]
[1722414921771,1.57220752,3327.5,3326.9,7.47]
[1722414922036,1.57220752,3327.3,3326.8,4.11387]
[1722414922272,1.57220752,3327.3,3326.9,35.0]
[1722414922606,3.00526,3327.5,3326.9,35.0]
[1722414922736,1.57100776,3327.2,3326.9,35.0]
[1722414923076,4.21580931,3327.6,3327.0,3.00569]
[1722414923077,1.57100776,3327.3,3327.0,3.00569]
[1722414923233,1.57100776,3327.4,3327.1,3.00557]
[1722414923435,1.57100776,3327.5,3327.4,3.00534]
[1722414923671,1.57100776,3327.6,3327.3,3.00541]
[1722414924262,1.57100776,3327.6,3327.2,5.13028729]
[1722414924457,1.57100776,3327.6,3327.2,8.13572729]
[1722414924649,1.57100776,3327.6,3327.2,5.13026729]
[1722414924850,1.57100776,3327.5,3327.2,5.13026729]
[1722414925047,1.57100776,3327.5,3327.2,7.1189]
[1722414925251,1.57100776,3327.6,3327.2,7.1189]
[1722414925651,1.57100776,3327.6,3327.4,3.00533]
[1722414925855,1.57100776,3327.7,3327.4,3.00533]
[1722414926081,1.57118503,3327.6,3327.2,1.108]
[1722414926244,1.57118503,3327.5,3327.3,3.00543]
[1722414926573,3.00494,3327.9,3327.3,3.00543]
[1722414926574,1.57118503,3327.6,3327.3,3.00543]
[1722414927017,3.30765905,3328.2,3328.1,3.00471]
[1722414927018,0.93344581,3328.2,3328.1,3.00471]
[1722414927211,1.88592659,3329.7,3328.1,6.9811]
[1722414927339,1.88592659,3329.9,3328.2,0.69811]
[1722414927536,3.00335,3329.7,3328.9,1.108]
[1722414927759,4.88927659,3329.7,3328.9,1.108]
[1722414928196,3.0031,3329.9,3328.9,4.11197]
[1722414928566,3.00318,3329.8,3328.9,4.11199]
[1722414929170,3.00328,3329.7,3328.9,3.00399]
[1722414930616,3.00328,3329.7,3329.0,3.0039]
[1722414932468,3.00318,3329.8,3329.0,3.0039]
[1722414932731,3.00328,3329.7,3329.0,3.0039]
[1722414932932,3.0034,3329.6,3328.6,3.00424]
[1722414933139,3.01387,3329.1,3328.4,3.00437]
[1722414933340,0.301387,3329.0,3328.5,3.0043]
[1722414933482,0.01,3329.1,3328.6,3.00425]
[1722414934825,0.01,3329.1,3328.4,3.00437]
[1722414935442,3.01383,3329.1,3328.4,3.00437]
[1722414935748,0.01,3329.1,3328.4,3.00437]
[1722414936044,0.01,3329.1,3328.7,3.00416]
[1722414937033,0.01,3329.1,3328.9,3.00399]
[1722414937538,0.01,3329.1,3328.7,6.00826]
[1722414937759,0.01,3329.1,3328.8,3.00407]
[1722414937962,0.01,3329.1,3328.6,3.00418]
[1722414938158,0.01,3329.1,3328.7,3.00415]
[1722414938301,0.01,3329.1,3328.7,3.0041]
[1722414938732,0.01,3329.1,3328.9,3.00399]
[1722414938959,0.01,3329.1,3328.7,6.00819]
[1722414939133,0.01,3329.1,3328.8,3.00406]
[1722414943435,0.01,3329.1,3328.6,3.00419]
[1722414943633,0.01,3329.1,3328.6,3.00418]
[1722414943837,0.01,3329.1,3328.2,3.00456]
[1722414945769,0.01,3329.1,3328.8,3.00402]
[1722414945915,0.01,3329.1,3328.9,3.00398]
[1722414946773,0.01,3329.1,3328.7,3.00408]
[1722414946975,0.01,3329.1,3328.8,3.004]
[1722414947132,0.01,3329.1,3329.0,3.0039]
[1722414952583,0.01,3329.1,3329.0,6.0078]
[1722414957714,0.01,3329.1,3329.0,6.06787372]
[1722414957854,0.01,3329.1,3329.0,9.07177372]
[1722414962397,0.01,3329.1,3329.0,9.0117]
[1722414962709,0.01,3329.1,3329.0,12.06071288]
[1722414964282,0.01,3329.1,3329.0,9.0117]
[1722414972742,0.01,3329.1,3329.0,7.1148]
[1722414979590,0.01,3329.1,3328.6,35.0]